Cogmind - Beta 13 @@@ ROGUE MODE // 2024.04.05 @ 14:04:00 Player: ILikeVoltron Result: Self-destructed Performance ------------- Evolutions (2) 1000 Regions Visited (4) 800 Robots Destroyed (35) 175 Value Destroyed (919) 919 Prototype IDs (2) 40 Alien Tech Used (0) 0 Bonus (-179) -179 TOTAL SCORE: 2755 Bonus ------- Follower Combat Kills 74 Friendly Fire -253 Cogmind --------- Core Integrity 403/550 Matter 300/300 Energy 81/100 System Corruption 0% Temperature Cool (18) Movement Walking (123) Location -8/Materials Parts ------- > --- POWER (1) -------- (None) > --- PROPULSION (4) --- Aluminum Leg Carbon-fiber Leg Titanium Leg > --- UTILITY (4) ------ Small Storage Unit Large Storage Unit Hacking Suite > --- WEAPON (2) ------- (None) > --- INVENTORY (15) --- Ion Engine Improved Ion Engine Aluminum Leg Aluminum Leg Medium Storage Unit Medium Matter Pod (100) Terrain Scanner ECM Suite Field Recycling Unit (0) Peak State ------------ > --- POWER ------------ Light Angular Momentum Engine > --- PROPULSION ------- Light Treads Aluminum Leg Carbon-fiber Leg Titanium Leg > --- UTILITY ---------- Advanced Heat Sink Small Storage Unit Seismic Detector Hacking Suite > --- WEAPON ----------- Improved Assault Rifle Datajack > --- INVENTORY -------- Ion Engine Improved Ion Engine Aluminum Leg Aluminum Leg Medium Matter Pod Terrain Scanner ECM Suite Field Recycling Unit [Rating: 28] Favorites ----------- Power Light Nuclear Core Engine Ion Engine Power Core Light Nuclear Core Propulsion Light Treads Treads Light Treads Leg Aluminum Leg Utility Small Storage Unit Device Seismic Detector Storage Small Storage Unit Processor Transport Network Coupler Hackware Hacking Suite Weapon Light Assault Rifle Energy Gun Improved EM Shotgun Ballistic Gun Light Assault Rifle Ballistic Cannon Light Cannon Special Melee Weapon Datajack Build | -11 -10 -10 -9 -8 ------- Run | Yrd Mat Min Mat Mat Slots Evolved 4 | . . . 2 2 Power . | . . . . . Propulsion 2 | . . . 1 1 Utility 2 | . . . 1 1 Weapon . | . . . . . Parts Attached 31 | . 9 2 11 9 Power 6 | . 3 . 2 1 Engine 5 | . 2 . 2 1 Core 1 | . 1 . . . Reactor . | . . . . . Propulsion 9 | . 2 2 2 3 Treads 4 | . . 2 2 . Leg 5 | . 2 . . 3 Wheel . | . . . . . Hover . | . . . . . Flight . | . . . . . Utility 10 | . 3 . 4 3 Device 5 | . 1 . 2 2 Storage 3 | . 1 . 1 1 Processor 1 | . 1 . . . Hackware 1 | . . . 1 . Protection . | . . . . . Artifact . | . . . . . Weapon 6 | . 1 . 3 2 Energy Gun 1 | . . . 1 . Energy Cannon . | . . . . . Ballistic Gun 3 | . . . 2 1 Ballistic Cannon 1 | . 1 . . . Launcher . | . . . . . Special Weapon . | . . . . . Impact Weapon . | . . . . . Slashing Weapon . | . . . . . Piercing Weapon . | . . . . . Special Melee Weapon 1 | . . . . 1 Unidentified Prototypes 2 | . . . 2 . Parts Lost 13 | . 1 2 1 9 Power 2 | . . . 1 1 Propulsion 4 | . 1 1 . 2 Utility 3 | . . . . 3 Weapon 4 | . . 1 . 3 Highest Loss Streak 6 | . 1 2 1 6 To Critical Strikes . | . . . . . Average Slot Usage (%) 93 | . 96 87 97 90 Engine 5 | . 12 . 2 8 Core 6 | . 1 14 7 . Treads 19 | . . 22 33 22 Leg 10 | . 28 5 . 8 Device 8 | . 8 . 10 15 Storage 12 | . 15 14 11 9 Processor 6 | . 1 14 7 . Hackware 2 | . . . 3 9 Energy Gun 1 | . . . 4 . Ballistic Gun 13 | . 24 2 10 13 Ballistic Cannon 6 | . 3 14 5 . Naked Turns . | . . . . . Heaviest Build 26 | 12 16 14 24 26 Greatest Support 60 | 20 20 40 60 60 Greatest Overweight (x) . | . . . . . Average Overweight (x) . | . . . . . Largest Inventory Capacity 15 | . 8 8 8 15 Average Capacity 8 | . 8 8 8 8 Most Carried 9 | . 8 8 8 9 Average Carried 7 | . 7 7 7 7 Final Capacity 15 | 8 8 8 8 15 Final Carried 9 | 6 8 8 8 9 Class Distribution -------------------- 64% | Mutant 35% | Scavenger-Mutant Dominant Class ---------------- Mutant | -10/Materials Mutant | -10/Mines Mutant | -9/Materials Scavenger-Mutant | -8/Materials Resources | -11 -10 -10 -9 -8 ----------- Run | Yrd Mat Min Mat Mat Matter Collected 1075 | 200 330 111 298 136 Remotely . | . . . . . Salvage Created 1266 | . 402 46 617 201 Parts 79 | . 25 2 40 12 Haulers Intercepted 4 | . 2 . 1 1 Recyclers Shooed . | . . . . . Parts Field Recycled . | . . . . . Retrieved Matter . | . . . . . Parts Self-Destructed . | . . . . . Prevented . | . . . . . Kills | -11 -10 -10 -9 -8 ------- Run | Yrd Mat Min Mat Mat Combat Hostiles Destroyed 23 | . 9 3 8 3 Guns 17 | . 7 . 7 3 Cannons 5 | . 2 3 . . AOE 1 | . . . 1 . Classes Destroyed 8 | . 6 . 2 . Worker 1 | . 1 . . . Hauler 4 | . 2 . 1 1 Recycler 1 | . . . 1 . Operator 2 | . 1 . 1 . Watcher 2 | . 1 . 1 . Swarmer 4 | . 3 1 . . Grunt 18 | . 6 2 7 3 Sentry 3 | . . . 3 . Best Kill Streak 5 | . 4 1 5 3 Combat Bots Only 3 | . 3 1 3 3 Max Kills in Single Turn 2 | . 1 1 2 1 Gunslinging 1 | . . . 1 . Exploded 1 | . . . 1 . Melee . | . . . . . Uniques/NPCs Destroyed . | . . . . . Combat | -11 -10 -10 -9 -8 -------- Run | Yrd Mat Min Mat Mat Hostile Shots Fired 217 | . 44 35 64 74 Missed 50 | . 4 9 21 16 Damage Taken 2338 | . 525 336 562 915 Core 373 | . 99 14 113 147 Absorbed by Shields . | . . . . . Regen/Repaired (Parts) 101 | . . . . 101 Core Remaining (%) 75 | 100 . 54 71 . Volleys Fired 132 | . 53 24 35 20 Largest 2 | . 2 2 2 2 Hottest 80 | . 55 55 80 46 Shots Fired 229 | . 106 29 67 27 Gun 181 | . 93 5 56 27 Cannon 48 | . 13 24 11 . Launcher . | . . . . . Special . | . . . . . Kinetic 221 | . 106 29 59 27 Thermal . | . . . . . Explosive . | . . . . . Electromagnetic 8 | . . . 8 . Robot Hit Streak 13 | . 11 7 12 13 Robot Miss Streak 3 | . 2 2 3 2 Penetration Max . | . . . . . Secondary Targets 4 | . 1 . 2 1 Max Gunslinging Chain 1 | . 1 . 1 1 Shots Hit Robots 177 | . 80 20 49 28 Core Hits 65 | . 30 5 20 10 Critical Kills . | . . . . . Critical Parts Destroyed 2 | . 2 . . . Critical Strikes 5 | . 3 2 . . Destroy 2 | . 2 . . . Blast 3 | . 1 2 . . Melee Attacks 6 | . . . . 6 Impact . | . . . . . Slashing . | . . . . . Piercing . | . . . . . Sneak Attacks 4 | . . . . 4 Combat Hostiles . | . . . . . Follow-up Attacks . | . . . . . Damage Inflicted 2225 | . 740 330 811 344 Guns 1607 | . 584 27 652 344 Cannons 527 | . 156 298 73 . Explosions 86 | . . . 86 . Melee . | . . . . . Ramming 5 | . . 5 . . Kinetic 2042 | . 740 325 633 344 Thermal 86 | . . . 86 . Explosive . | . . . . . Electromagnetic 92 | . . . 92 . Impact . | . . . . . Slashing . | . . . . . Piercing . | . . . . . Highest Corruption . | . . . . . Average Corruption . | . . . . . Corruption Purged . | . . . . . Corruption Blocked . | . . . . . Overload Shots . | . . . . . Overflow Damage . | . . . . . Projectiles . | . . . . . Explosions . | . . . . . Melee . | . . . . . Knockbacks 9 | . 3 6 . . Impact . | . . . . . Kinetic 8 | . 3 5 . . Secondary 1 | . . 1 . . Self-Inflicted Damage 28 | . . . 28 . Shots 1 | . . . 1 . Rammed 1 | . . 1 . . Targets Rammed 2 | . . 2 . . Kicked 1 | . . 1 . . Crushed . | . . . . . Highest Temperature 81 | . 50 81 60 10 Average Temperature 18 | . 16 20 23 3 Received Heat Transfer 999 | . 276 171 183 369 Siege Activations . | . . . . . Robots Corrupted . | . . . . . Combat Hostiles . | . . . . . Parts Fried . | . . . . . Impact Corruptions . | . . . . . Robots Melted . | . . . . . Combat Hostiles . | . . . . . Parts Melted . | . . . . . Heat Transferred 100 | . . . 100 . Parts Sabotaged . | . . . . . Parts Stolen . | . . . . . Parts Stripped . | . . . . . Power Chain Reactions 1 | . . . 1 . Alert | -11 -10 -10 -9 -8 ------- Run | Yrd Mat Min Mat Mat Peak Influence 360 | . 242 131 360 191 Initial 91 | . . 28 23 91 Average 110 | . 74 81 166 119 Maximum Alert Level 1 | . 1 . 1 . Low Security (%) 89 | . 92 100 72 100 Level 1 10 | . 7 . 27 . Level 2 . | . . . . . Level 3 . | . . . . . Level 4 . | . . . . . Level 5 . | . . . . . High Security . | . . . . . Max Security . | . . . . . Squads Dispatched 6 | . 1 . 4 1 Investigation 2 | . . . 2 . Extermination . | . . . . . Reinforcement 4 | . 1 . 2 1 Assault . | . . . . . Garrison . | . . . . . Intercept . | . . . . . Searches Triggered . | . . . . . Construction Impeded . | . . . . . Haulers Reinforced . | . . . . . Active Scanning Responses . | . . . . . Cargo Convoy Interrupts . | . . . . . Stealth | -11 -10 -10 -9 -8 --------- Run | Yrd Mat Min Mat Mat Distress Signals 7 | . 5 . 2 . Communications Jammed . | . . . . . Distress Signals . | . . . . . Times Spotted 56 | . 17 8 18 13 Peak Tracking Total 8 | . 5 2 7 8 Tactical Retreats 2 | . 1 1 . . Traps | -11 -10 -10 -9 -8 ------- Run | Yrd Mat Min Mat Mat Traps Triggered 1 | . . . 1 . Indirectly . | . . . . . Trap Hack Attempts . | . . . . . Triggered . | . . . . . Disarmed . | . . . . . Reprogrammed . | . . . . . Reused . | . . . . . Traps Extracted . | . . . . . Installed . | . . . . . Triggered . | . . . . . Most Traps Carried 1 | . . 1 1 . Machines | -11 -10 -10 -9 -8 ---------- Run | Yrd Mat Min Mat Mat Machines Disabled 4 | . . . 4 . Max in Single Turn 1 | . . . 1 . Machines Repaired . | . . . . . Machines Dismantled . | . . . . . Machines Sabotaged . | . . . . . Overloaded Fab Kills . | . . . . . Hacking | -11 -10 -10 -9 -8 --------- Run | Yrd Mat Min Mat Mat Machines Accessed 9 | . 2 . 6 1 Terminals 7 | . 2 . 5 . Fabricators . | . . . . . Repair Stations 1 | . . . . 1 Recycling Units . | . . . . . Scanalyzers 1 | . . . 1 . Garrison Access . | . . . . . Total Hacks 23 | . 4 . 17 2 Successful 16 | . 3 . 11 2 Failed 7 | . 1 . 6 . Catastrophic . | . . . . . Database Lockouts . | . . . . . Manual 7 | . 2 . 5 . Terminals 19 | . 4 . 15 . Fabricators . | . . . . . Repair Stations 2 | . . . . 2 Recycling Units . | . . . . . Scanalyzers 2 | . . . 2 . Garrison Access . | . . . . . Terminal Hacks 7 | . 2 . 5 . Part Schematic 1 | . . . 1 . Emergency Access Points 1 | . . . 1 . Alert Level 1 | . . . 1 . Unreport Threat 1 | . 1 . . . Hauler Manifests 1 | . . . 1 . Zone Layout 2 | . 1 . 1 . Fabricator Hacks . | . . . . . Repair Station Hacks 2 | . . . . 2 Scan Component 1 | . . . . 1 Repair 1 | . . . . 1 Recycling Unit Hacks . | . . . . . Scanalyzer 2 | . . . 2 . Insert Component 1 | . . . 1 . Analyze 1 | . . . 1 . Garrison Access Hacks . | . . . . . Unauthorized Hacks 5 | . 1 . 4 . Terminals 5 | . 1 . 4 . Assimilate 1 | . . . 1 . Botnet 4 | . 1 . 3 . Fabricators . | . . . . . Repair Stations . | . . . . . Recycling Units . | . . . . . Scanalyzers . | . . . . . Garrison Access . | . . . . . Data Cores Recovered . | . . . . . Used . | . . . . . Hacking Detections 4 | . 1 . 3 . Full Trace Events 1 | . . . 1 . Feedback Events . | . . . . . Feedback Blocked . | . . . . . Robot Schematics Acquired . | . . . . . Robots Built . | . . . . . Authchips . | . . . . . Time . | . . . . . Total Robot Build Rating . | . . . . . Part Schematics Acquired 2 | . . . 2 . Parts Built . | . . . . . Authchips . | . . . . . Time . | . . . . . Total Part Build Rating . | . . . . . Parts Repaired 1 | . . . . 1 Time 51 | . . . . 51 Parts Recycled . | . . . . . Recycled Matter . | . . . . . Retrieved Matter . | . . . . . Retrieved Components . | . . . . . Parts Scanalyzed 1 | . . . 1 . Part Schematics Acquired 1 | . . . 1 . Parts Damaged . | . . . . . Bothacking | -11 -10 -10 -9 -8 ------------ Run | Yrd Mat Min Mat Mat Used RIF Installer . | . . . . . Robots Hacked 3 | . . . . 3 Non-combat 2 | . . . . 2 Combat 1 | . . . . 1 Robot Hacks Applied 3 | . . . . 3 parse_system 1 | . . . . 1 find_recycling 2 | . . . . 2 Relay Couplers Released . | . . . . . Fabnet Peak Effective % . | . . . . . Robots Rewired . | . . . . . Allies Hacked . | . . . . . Hacks Repelled . | . . . . . Allies | -11 -10 -10 -9 -8 -------- Run | Yrd Mat Min Mat Mat Total Allies 3 | . . 3 . . Largest Group 3 | . . 3 1 . Highest-Rated Group 40 | . . 40 16 . Highest-Rated Ally 16 | . . 16 16 . Total Orders . | . . . . . Ally Attacks 21 | . . 16 5 . Total Damage 190 | . . 155 35 . Kills 4 | . . 4 . . Allies Corrupted . | . . . . . Allies Melted . | . . . . . Intel | -11 -10 -10 -9 -8 ------- Run | Yrd Mat Min Mat Mat Robot Analysis Total . | . . . . . Derelict Logs Recovered . | . . . . . Drone Launches . | . . . . . Drone Recoveries . | . . . . . Exploration | -11 -10 -10 -9 -8 ------------- Run | Yrd Mat Min Mat Mat Turns Passed 1766 | . 520 445 510 291 Spaces Moved 913 | 1 297 255 242 118 Core . | . . . . . Treads 505 | . . 198 242 65 Legs 408 | 1 297 57 . 53 Wheels . | . . . . . Hover . | . . . . . Flight . | . . . . . Fastest Speed 120 | 120 120 120 160 120 Average Speed 142 | 120 120 151 160 142 Slowest Speed 160 | 120 120 160 160 160 Overloaded Moves . | . . . . . Propulsion Burnouts . | . . . . . Robots Hopped . | . . . . . Cave-ins Triggered . | . . . . . Exploration Rate (%) 27 | 2 48 44 32 12 Regions Visited 4 Branch Regions 1 Pre-discovered Areas . | . . . . . Known Exits Taken . | . . . . . Unknown Exits Taken 4 | 1 1 1 1 . Scrap Searched . | . . . . . Spaces Dug . | . . . . . Terrain Destroyed . | . . . . . Melee . | . . . . . Projectile . | . . . . . AOE . | . . . . . Terrain Rammed . | . . . . . Walls Destroyed . | . . . . . Machines Disabled . | . . . . . Actions | -11 -10 -10 -9 -8 --------- Run | Yrd Mat Min Mat Mat Total 1170 | . 378 286 298 208 Wait 54 | . . 3 . 51 Move 909 | . 296 254 241 118 Hop . | . . . . . Pick Up 13 | . 7 1 3 2 Fast Attach 18 | . 5 . 6 7 Attach 6 | . 2 1 1 2 Detach 5 | . 3 . 1 1 Swap 7 | . 2 1 4 . Drop 18 | . 10 . 7 1 Fire 132 | . 53 24 35 20 Melee 6 | . . . . 6 Ram . | . . . . . Kick 1 | . . 1 . . Crush 1 | . . 1 . . Escape Stasis . | . . . . . Rewire . | . . . . . Trap . | . . . . . Miscellaneous . | . . . . . Route ------- -11/Scrapyard -10/Materials (discovered 3 exits: *Mat / [*Min x2]) -10/Mines -9/Materials (discovered 2 exits: *Mat / [*Min]) -8/Materials History --------- Turn | Location | Event 1 | -11/Scrapyard | Discovered new exit (range 0) 1 | -11/Scrapyard | Entered Materials 182 | -10/Materials | Discovered new exit (range 16) 243 | -10/Materials | Discovered new exit (range 7) 312 | -10/Materials | Build established: Mutant 492 | -10/Materials | Discovered new exit (range 12) 521 | -10/Materials | Entered Mines 686 | -10/Mines | Assisted by bots powering up and referring to "LRC-V3" 749 | -10/Mines | Found a hidden stash of uninstalled traps 944 | -10/Mines | Discovered new exit (range 10) 966 | -10/Mines | Entered Materials 966 | -9/Materials | Accompanied by 2 allies 966 | -9/Materials | Evolved 2 slots: Propulsion x1, Utility x1 1416 | -9/Materials | Discovered new exit (range 13) 1460 | -9/Materials | Discovered new exit (range 11) 1476 | -9/Materials | Entered another Materials area 1476 | -8/Materials | Evolved 2 slots: Propulsion x1, Utility x1 1555 | -8/Materials | Repaired Imp. Assault Rifle 1633 | -8/Materials | Build established: Scavenger-Mutant 1695 | -8/Materials | Lost 3 parts (1n1u1w) 1767 | -8/Materials | Self-destructed Last Messages --------------- 01746_ G-47 Trooper unfolds itself. 01746_ K-01 Serf collects debris. 01747_ Slug penetrates Wall. 01749_ K-01 Serf collects debris. 01753_ Penetrated by Slug. 01755_ K-01 Serf collects debris. 01756_ Seismic Detector destroyed. 01756_ Penetrated by Slug. 01756_ Lgt. Angular Momentum Engine destroyed. 01759_ A-02 Transporter destroyed. 01760_ K-01 Serf cleans the Terminal. 01761_ Acquired 31 matter. 01761_ Lgt. Treads destroyed. 01761_ Datajack destroyed. 01763_ Acquired Lrg. Storage Unit. 01764_ Imp. Assault Rifle destroyed. 01764_ R-06 Scavenger collects Lgt. Treads. 01765_ Penetrated by Slug. 01766_ Adv. Heat Sink destroyed. 01766_ Acquired Med. Storage Unit. Map ----- +----------------------------------------------------+ | ??????????????????????????????????????????????? | | ??????????????????????????????????????????????? | | ??????????????????????????????????????????????? | | ??????????????????????????????????????????????? | | ??????????????????????????????????????????????? | | ??????????????????????????????????????????????? | | ??????????????????????????????????????????????? | | ?????????????????????## ?????????????????????? | | ????????????????????? ???????????????????? | | ????????????????????? = #?????????????????? | | ????????????????????? % !#?????????????????? | | ????????????????????? T #?????????????????? | | ????????????????????? gk #?????????????????? | | ????????????????????? #?????????????????? | | ????????????????????? g g ??????????????????? | | ?????????????????????# #??????????????????? | | ?????????????????????#r #??????????????????? | | ?????????????????????# #??????????????????? | | ?????????????????????# ######+###?????????? | | ?????????????????????# #?????????? | | ?????????????????????# #?????????? | | ?????????????????????# ! #?????????? | | ?????????????????????#!!! #?????????? | | ?????????????????????#hw!= ???????? | | ?????????????????????# ##########+#???????????? | | ?????????????????????#@#??????????????????????? | | ????????????????????## ##?????????????????????? | | ????????????????????# #?????????????????????? | | ????????????????????# #?????????????????????? | | ????????????????????# #?????????????????????? | | ????????????????????##r##?????????????????????? | | ????????????????????# #??????????????????????? | | ????????????????????# #??????????????????????? | | ????????????????????# #??????????????????????? | | ?????H??????????????# #??????????????????????? | | ????????????????????# ##?????????????????????? | | ????????????????????# #????????############?? | | ????????????????????# #????????# !%= #?? | | ????????????????????# #?? """ + [= % #?? | | ????????????????????## #???"""" # * #?? | | ?????????????????????# #???"""??####+### #?? | | ?????????????????????# #?????????# # #?? | | ?????????????????????# #?????????# # #?? | | ?????????????????????# ########### # ### | | ?????????????????????# + # | | ?????????????????????#+############ # | | ??????????????????????????????????# # | | ??????????????????????????????????# ####### | | ??????????????????????????????????# #?????? | | ??????????????????????????????????# #?????? | +----------------------------------------------------+ Best States ------------- Heat Dissipation 50 Energy Generation 18 Energy Capacity 265 Matter Stores 371 Matter Capacity 400 Sight Range 16 Terrain Scan Density 10 ECM Strength 1 Evasion (%) 55 Recoil Reduction 3 Particle Charging 15 Offensive Hacking 10 Item Schematics ----------------- Terrain Scanner | -9/Materials | Scanalyzed Lrg. Storage Unit | -9/Materials | Hacked Robot Schematics ------------------ None Fabricated ------------ Nothing Alien Tech Used ----------------- None Achievements -------------- None Challenges ------------ None Game ------ Seed HybridDroneSpear Manual? 0 Play Time 00:20:04 Cumulative 114.3 hours Start 2024.04.05 @ 13:46:35 End 2024.04.05 @ 14:04:00 Sessions 1 Manual Loads 0 Difficulty Rogue Special Mode None Game No. 183 Rogue 179 Adventurer 0 Explorer 4 Win Type - Total 0 Types 0/0/0/0/0/0/0/0/0 Lore% 25 Gallery% 42 Achievement% 33 Wizard Run 0 Options --------- Layout 1 ASCII 0 Keyboard 1 Movement Arrows Keybinds 0 Fullscreen 2 Font 32/SmallcapsGlow Map View 130x35 Zoom Use 0% Tactical HUD 1 Map Filters NONE Filters NONE Steam 1 RUN: dc3ea494-4a4b-4a68-834f-86c11c823b19